{"text_format":"1","workbook":"xlsx","n_sheets":6,"sheets":["Mapping_Table","Mapping","Sheet1","User Interface","Paid Software Licenses","Formula"],"not_rendered":{"charts":0,"images":0,"macros":1,"external_links":0,"defined_names":140,"comments":0,"pivot_tables":0},"unopened":[],"bounds":{"document_bytes":16777216,"sheet_cells":100000,"rows_first":2000,"rows_last":500,"rows_between":2000,"halvings":0,"cell_chars":16384,"cell_head_chars":4096},"cells_cut":0,"cells_raw":0,"read":"whole","date_system":"1900"}

{"sheet":"Mapping_Table","index":0,"n_rows":24,"n_cols":85,"rows_kept":24,"cut":false,"hidden":true,"merged":[]}
["Family",null,"ACT_1","ACT_2","ACT_3","Axcelerator","Fusion","IGLOO","IGLOO2","PolarFire","PolarfireSoC","ProASIC","ProASICPLUS","ProASIC3","RTPolarFire","RTProASIC3","RTAX_DSP","RTAX_S","RT4G","RTSX_SU","SmartFusion","SmartFusion2","MX","eX","SX_A",null,"AxceleratorAX125","AxceleratorAX250","AxceleratorAX500","AxceleratorAX1000","AxceleratorAX2000","ACT_1All_Devices","ACT_2All_Devices","ACT_3All_Devices","FusionAll_Devices","IGLOOAll_Devices","IGLOO2M2GL005","IGLOO2M2GL010","IGLOO2M2GL025","IGLOO2TGrade1_Devices","IGLOO2M2GL050","IGLOO2M2GL060","IGLOO2M2GL090","IGLOO2M2GL150","IGLOO2All_Security_Devices","IGLOO2TGrade2_Devices","ProASICAll_Devices","ProASICPLUSAll_Devices","ProASIC3All_Devices","RTPolarFireAll_Devices","RTProASIC3RT3PE600L","RTProASIC3RT3PE3000L","RTAX_DSPRTAX2000D","RTAX_DSPRTAX4000D","RTAX_SRTAX250S","RTAX_SRTAX1000S","RTAX_SRTAX2000S","RTAX_SRTAX4000S","RT4GRTG4150","RTProASIC3RT3PE3000L","RTProASIC3RT3PE600L","RTSX_SUAll_Devices","SmartFusionAll_Devices","SmartFusion2M2S005","SmartFusion2M2S010","SmartFusion2M2S025","SmartFusion2M2S050","SmartFusion2M2S060","SmartFusion2M2S090","SmartFusion2M2S150","SmartFusion2All_Security_Devices","SmartFusion2TGrade2_Devices","MXAll_Devices","eXAll_Devices","SX_AAll_Devices","PolarFireKit_Based_Devices","PolarFireMPF100_non_Security_Devices","PolarFireMPF200_non_Security_Devices","PolarFireAll_Devices_including_Security","PolarFireTGrade2_Devices","PolarfireSoCMPFS025_non_Security_Devices","PolarfireSoCMPFS250_non_Security_Devices","PolarfireSoCAll_Security_Devices","PolarfireSoCTGrade2_Devices","PolarfireSoCKit_Based_Devices"]
["ACT_1",null,"All_Devices","All_Devices","All_Devices","AX125","All_Devices","All_Devices","M2GL005","Kit_Based_Devices","MPFS025_non_Security_Devices","All_Devices","All_Devices","All_Devices","All_Devices","RT3PE600L","RTAX2000D","RTAX250S","RTG4150","All_Devices","All_Devices","M2S005","All_Devices","All_Devices","All_Devices",null,"Libero IDE (Any version)","Libero IDE (Any version)","Libero IDE (Any version)","Libero IDE (Any version)","Libero IDE (Any version)","Libero IDE (Any version)","Libero IDE (Any version)","Libero IDE (Any version)","Libero SoC v11.8 to Libero SoC v11.9 SP2","Libero SoC v11.8 to Libero SoC v11.9 SP2","Libero SoC v11.8 or later ","Libero SoC v11.8 or later ","Libero SoC v11.8 or later ","Libero SoC v11.8 or later ","Libero SoC v11.8 or later ","Libero SoC v11.8 or later ","Libero SoC v11.8 or later ","Libero SoC v11.8 or later ","Libero SoC v11.8 or later ","Libero SoC v11.8 or later ","Libero IDE (Any version)","Libero IDE (Any version)","Libero SoC v11.8 to Libero SoC v11.9 SP2","Libero SoC v12.4 or later","Libero SoC v11.8 to Libero SoC v11.9 SP2","Libero SoC v11.8 to Libero SoC v11.9 SP2","Libero IDE (Any version)","Libero IDE (Any version)","Libero IDE (Any version)","Libero IDE (Any version)","Libero IDE (Any version)","Libero IDE (Any version)","Libero SoC (Any version)","Libero SoC v11.8 to Libero SoC v11.9 SP2","Libero SoC v11.8 to Libero SoC v11.9 SP2","Libero IDE (Any version)","Libero SoC v11.8 to Libero SoC v11.9 SP2","Libero SoC v11.8 or later ","Libero SoC v11.8 or later ","Libero SoC v11.8 or later ","Libero SoC v11.8 or later ","Libero SoC v11.8 or later ","Libero SoC v11.8 or later ","Libero SoC v11.8 or later ","Libero SoC v11.8 or later ","Libero SoC v11.8 or later ","Libero IDE (Any version)","Libero IDE (Any version)","Libero IDE (Any version)","Libero SoC v12.0 and later releases","Libero SoC v12.0 and later releases","Libero SoC v12.0 and later releases","Libero SoC v12.0 and later releases","Libero SoC v12.0 and later releases","Libero SoC v12.5 or later","Libero SoC v12.5 or later","Libero SoC v12.5 or later","Libero SoC v12.5 or later","Libero SoC v12.5 or later"]
["ACT_2",null,null,null,null,"AX250",null,null,"M2GL010","MPF100_non_Security_Devices","MPFS250_non_Security_Devices",null,null,null,null,"RT3PE3000L","RTAX4000D","RTAX1000S",null,null,null,"M2S010",null,null,null,null,null,null,null,null,null,null,null,null,"Libero SoC v11.7 SP3 or earlier","Libero SoC v11.7 SP3 or earlier","Libero SoC v11.7 SP3 or earlier","Libero SoC v11.7 SP3 or earlier","Libero SoC v11.7 SP3 or earlier","Libero SoC v11.7 SP3 or earlier","Libero SoC v11.7 SP3 or earlier","Libero SoC v11.7 SP3 or earlier","Libero SoC v11.7 SP3 or earlier","Libero SoC v11.7 SP3 or earlier","Libero SoC v11.7 SP3 or earlier","Libero SoC v11.7 SP3 or earlier",null,null,"Libero SoC v11.7 SP3 or earlier",null,"Libero SoC v11.7 SP3 or earlier","Libero SoC v11.7 SP3 or earlier",null,null,null,null,null,null,null,"Libero SoC v11.7 SP3 or earlier","Libero SoC v11.7 SP3 or earlier",null,"Libero SoC v11.7 SP3 or earlier","Libero SoC v11.7 SP3 or earlier","Libero SoC v11.7 SP3 or earlier","Libero SoC v11.7 SP3 or earlier","Libero SoC v11.7 SP3 or earlier","Libero SoC v11.7 SP3 or earlier","Libero SoC v11.7 SP3 or earlier","Libero SoC v11.7 SP3 or earlier","Libero SoC v11.7 SP3 or earlier","Libero SoC v11.7 SP3 or earlier"]
["ACT_3",null,null,null,null,"AX500",null,null,"M2GL025","MPF200_non_Security_Devices","All_Security_Devices",null,null,null,null,null,null,"RTAX2000S",null,null,null,"M2S025"]
["Axcelerator",null,null,null,null,"AX1000",null,null,"TGrade1_Devices","All_Devices_including_Security","TGrade2_Devices",null,null,null,null,null,null,"RTAX4000S",null,null,null,"M2S050"]
["Fusion",null,null,null,null,"AX2000",null,null,"M2GL050","TGrade2_Devices","Kit_Based_Devices",null,null,null,null,null,null,null,null,null,null,"M2S060"]
["IGLOO",null,null,null,null,null,null,null,"M2GL060",null,null,null,null,null,null,null,null,null,null,null,null,"M2S090"]
["IGLOO2",null,null,null,null,null,null,null,"M2GL090",null,null,null,null,null,null,null,null,null,null,null,null,"M2S150"]
["PolarFire",null,null,null,null,null,null,null,"M2GL150",null,null,null,null,null,null,null,null,null,null,null,null,"All_Security_Devices"]
["PolarFireSoC",null,null,null,null,null,null,null,"All_Security_Devices",null,null,null,null,null,null,null,null,null,null,null,null,"TGrade2_Devices"]
["ProASIC",null,null,null,null,null,null,null,"TGrade2_Devices"]
["ProASICPLUS"]
["ProASIC3"]
["RTPolarFire"]
["RTProASIC3"]
["RTAX_DSP"]
["RTAX_S"]
["RT4G"]
["RTSX_SU"]
["SmartFusion"]
["SmartFusion2"]
["MX"]
["eX"]
["SX_A"]

{"sheet":"Mapping","index":1,"n_rows":87,"n_cols":18,"rows_kept":87,"cut":false,"hidden":true,"merged":[]}
["Select Family","Select Device","Select Software Release","Concatenate Key","Required License to be Used"]
["ACT_1","All_Devices","Libero IDE (Any version)",{"$f":"CONCATENATE(A2,B2,C2)","v":"ACT_1All_DevicesLibero IDE (Any version)"},"Gold"]
["ACT_2","All_Devices","Libero IDE (Any version)",{"$f":"CONCATENATE(A3,B3,C3)","v":"ACT_2All_DevicesLibero IDE (Any version)"},"Gold"]
["ACT_3","All_Devices","Libero IDE (Any version)","ACT_3All_DevicesLibero IDE (Any version)","Gold"]
["Axcelerator","AX125","Libero IDE (Any version)","AxceleratorAX125Libero IDE (Any version)","Gold"]
["Axcelerator","AX250","Libero IDE (Any version)","AxceleratorAX250Libero IDE (Any version)","Gold"]
["Axcelerator","AX500","Libero IDE (Any version)","AxceleratorAX500Libero IDE (Any version)","Gold"]
["Axcelerator","AX1000","Libero IDE (Any version)","AxceleratorAX1000Libero IDE (Any version)","Gold"]
["Axcelerator","AX2000","Libero IDE (Any version)","AxceleratorAX2000Libero IDE (Any version)","Platinum/Platinum Archival"]
["Fusion","All_Devices","Libero SoC v11.8 to Libero SoC v11.9 SP2","FusionAll_DevicesLibero SoC v11.8 to Libero SoC v11.9 SP2","Silver"]
["Fusion","All_Devices","Libero SoC v11.7 SP3 or earlier","FusionAll_DevicesLibero SoC v11.7 SP3 or earlier","Gold"]
["IGLOO","All_Devices","Libero SoC v11.8 to Libero SoC v11.9 SP2","IGLOOAll_DevicesLibero SoC v11.8 to Libero SoC v11.9 SP2","Silver"]
["IGLOO","All_Devices","Libero SoC v11.7 SP3 or earlier","IGLOOAll_DevicesLibero SoC v11.7 SP3 or earlier","Gold"]
["IGLOO2","M2GL005","Libero SoC v11.8 or later ","IGLOO2M2GL005Libero SoC v11.8 or later ","Silver"]
["IGLOO2","M2GL010","Libero SoC v11.8 or later ","IGLOO2M2GL010Libero SoC v11.8 or later ","Silver"]
["IGLOO2","M2GL025","Libero SoC v11.8 or later ","IGLOO2M2GL025Libero SoC v11.8 or later ","Silver"]
["IGLOO2","TGrade1_Devices","Libero SoC v11.8 or later ","IGLOO2TGrade1_DevicesLibero SoC v11.8 or later ","Silver"]
["IGLOO2","M2GL050","Libero SoC v11.8 or later ","IGLOO2M2GL050Libero SoC v11.8 or later ","Gold"]
["IGLOO2","M2GL060","Libero SoC v11.8 or later ","IGLOO2M2GL060Libero SoC v11.8 or later ","Gold"]
["IGLOO2","M2GL090","Libero SoC v11.8 or later ","IGLOO2M2GL090Libero SoC v11.8 or later ","Gold"]
["IGLOO2","M2GL150","Libero SoC v11.8 or later ","IGLOO2M2GL150Libero SoC v11.8 or later ","Gold"]
["IGLOO2","All_Security_Devices","Libero SoC v11.8 or later ","IGLOO2All_Security_DevicesLibero SoC v11.8 or later ","Gold"]
["IGLOO2","TGrade2_Devices","Libero SoC v11.8 or later ","IGLOO2TGrade2_DevicesLibero SoC v11.8 or later ","Gold"]
["IGLOO2","All_Security_Devices","Libero SoC v11.7 SP3 or earlier","IGLOO2All_Security_DevicesLibero SoC v11.7 SP3 or earlier","Platinum/Platinum Archival"]
["IGLOO2","TGrade1_Devices","Libero SoC v11.7 SP3 or earlier","IGLOO2TGrade1_DevicesLibero SoC v11.7 SP3 or earlier","Platinum/Platinum Archival"]
["IGLOO2","TGrade2_Devices","Libero SoC v11.7 SP3 or earlier","IGLOO2TGrade2_DevicesLibero SoC v11.7 SP3 or earlier","Platinum/Platinum Archival"]
["IGLOO2","M2GL005","Libero SoC v11.7 SP3 or earlier","IGLOO2M2GL005Libero SoC v11.7 SP3 or earlier","Gold"]
["IGLOO2","M2GL010","Libero SoC v11.7 SP3 or earlier","IGLOO2M2GL010Libero SoC v11.7 SP3 or earlier","Gold"]
["IGLOO2","M2GL025","Libero SoC v11.7 SP3 or earlier","IGLOO2M2GL025Libero SoC v11.7 SP3 or earlier","Gold"]
["IGLOO2","M2GL050","Libero SoC v11.7 SP3 or earlier","IGLOO2M2GL050Libero SoC v11.7 SP3 or earlier","Gold"]
["IGLOO2","M2GL060","Libero SoC v11.7 SP3 or earlier","IGLOO2M2GL060Libero SoC v11.7 SP3 or earlier","Gold"]
["IGLOO2","M2GL090","Libero SoC v11.7 SP3 or earlier","IGLOO2M2GL090Libero SoC v11.7 SP3 or earlier","Platinum/Platinum Archival"]
["IGLOO2","M2GL150","Libero SoC v11.7 SP3 or earlier","IGLOO2M2GL150Libero SoC v11.7 SP3 or earlier","Platinum/Platinum Archival"]
["PolarFire","Kit_Based_Devices","Libero SoC v12.0 and later releases",{"$f":"CONCATENATE(A34,B34,C34)","v":"PolarFireKit_Based_DevicesLibero SoC v12.0 and later releases"},"Silver"]
["PolarFire","MPF100_non_Security_Devices","Libero SoC v12.0 and later releases","PolarFireMPF100_non_Security_DevicesLibero SoC v12.0 and later releases","Silver"]
["PolarFire","MPF200_non_Security_Devices","Libero SoC v12.0 and later releases","PolarFireMPF200_non_Security_DevicesLibero SoC v12.0 and later releases","Gold"]
["PolarFire","All_Devices_including_Security","Libero SoC v12.0 and later releases","PolarFireAll_Devices_including_SecurityLibero SoC v12.0 and later releases","Platinum/Platinum Archival"]
["PolarFire","TGrade2_Devices","Libero SoC v12.0 and later releases","PolarFireTGrade2_DevicesLibero SoC v12.0 and later releases","Platinum/Platinum Archival"]
["PolarfireSoC","MPFS025_non_Security_Devices","Libero SoC v12.5 or later","PolarfireSoCMPFS025_non_Security_DevicesLibero SoC v12.5 or later","Silver",null,{"$f":"CONCATENATE(A39,B39)","v":"PolarfireSoCMPFS025_non_Security_Devices"},null,null,null,null,null,null,"PolarfireSoCMPFS025_non_Security_Devices","PolarfireSoCMPFS250_non_Security_Devices","PolarfireSoCAll_Security_Devices","PolarfireSoCTGrade2_Devices","PolarfireSoCKit_Based_Devices"]
["PolarfireSoC","MPFS250_non_Security_Devices","Libero SoC v12.5 or later","PolarfireSoCMPFS250_non_Security_DevicesLibero SoC v12.5 or later","Gold",null,{"$f":"CONCATENATE(A40,B40)","v":"PolarfireSoCMPFS250_non_Security_Devices"}]
["PolarfireSoC","All_Security_Devices","Libero SoC v12.5 or later","PolarfireSoCAll_Security_DevicesLibero SoC v12.5 or later","Platinum/Platinum Archival",null,"PolarfireSoCAll_Security_Devices"]
["PolarfireSoC","TGrade2_Devices","Libero SoC v12.5 or later","PolarfireSoCTGrade2_DevicesLibero SoC v12.5 or later","Platinum/Platinum Archival",null,"PolarfireSoCTGrade2_Devices"]
["PolarfireSoC","Kit_Based_Devices","Libero SoC v12.5 or later","PolarfireSoCKit_Based_DevicesLibero SoC v12.5 or later","Silver",null,{"$f":"CONCATENATE(A43,B43)","v":"PolarfireSoCKit_Based_Devices"}]
["ProASIC","All_Devices","Libero IDE (Any version)","ProASICAll_DevicesLibero IDE (Any version)","Gold"]
["ProASICPLUS","All_Devices","Libero IDE (Any version)","ProASICPLUSAll_DevicesLibero IDE (Any version)","Gold"]
["ProASIC3","All_Devices","Libero SoC v11.8 to Libero SoC v11.9 SP2","ProASIC3All_DevicesLibero SoC v11.8 to Libero SoC v11.9 SP2","Silver"]
["ProASIC3","All_Devices","Libero SoC v11.7 SP3 or earlier","ProASIC3All_DevicesLibero SoC v11.7 SP3 or earlier","Gold"]
["RTPolarFire","All_Devices","Libero SoC v12.4 or later","RTPolarFireAll_DevicesLibero SoC v12.4 or later","Platinum/Platinum Archival"]
["RTProASIC3","RT3PE600L","Libero SoC v11.8 to Libero SoC v11.9 SP2","RTProASIC3RT3PE600LLibero SoC v11.8 to Libero SoC v11.9 SP2","Gold"]
["RTProASIC3","RT3PE600L","Libero SoC v11.7 SP3 or earlier","RTProASIC3RT3PE600LLibero SoC v11.7 SP3 or earlier","Gold"]
["RTProASIC3","RT3PE3000L","Libero SoC v11.8 to Libero SoC v11.9 SP2","RTProASIC3RT3PE3000LLibero SoC v11.8 to Libero SoC v11.9 SP2","Platinum/Platinum Archival"]
["RTProASIC3","RT3PE3000L","Libero SoC v11.7 SP3 or earlier","RTProASIC3RT3PE3000LLibero SoC v11.7 SP3 or earlier","Platinum/Platinum Archival"]
["RTAX_DSP","RTAX2000D","Libero IDE (Any version)","RTAX_DSPRTAX2000DLibero IDE (Any version)","Platinum/Platinum Archival"]
["RTAX_DSP","RTAX4000D","Libero IDE (Any version)","RTAX_DSPRTAX4000DLibero IDE (Any version)","Platinum/Platinum Archival"]
["RTAX_S","RTAX250S","Libero IDE (Any version)","RTAX_SRTAX250SLibero IDE (Any version)","Gold"]
["RTAX_S","RTAX1000S","Libero IDE (Any version)","RTAX_SRTAX1000SLibero IDE (Any version)","Gold"]
["RTAX_S","RTAX2000S","Libero IDE (Any version)","RTAX_SRTAX2000SLibero IDE (Any version)","Platinum/Platinum Archival"]
["RTAX_S","RTAX4000S","Libero IDE (Any version)","RTAX_SRTAX4000SLibero IDE (Any version)","Platinum/Platinum Archival"]
["RT4G","RTG4150","Libero SoC (Any version)","RT4GRTG4150Libero SoC (Any version)","Platinum/Platinum Archival"]
["RTProASIC3","RT3PE3000L","Libero SoC v11.8 to Libero SoC v11.9 SP2","RTProASIC3RT3PE3000LLibero SoC v11.8 to Libero SoC v11.9 SP2","Platinum/Platinum Archival"]
["RTProASIC3","RT3PE3000L","Libero SoC v11.7 SP3 or earlier","RTProASIC3RT3PE3000LLibero SoC v11.7 SP3 or earlier","Platinum/Platinum Archival"]
["RTProASIC3","RT3PE600L","Libero SoC v11.8 to Libero SoC v11.9 SP2","RTProASIC3RT3PE600LLibero SoC v11.8 to Libero SoC v11.9 SP2","Gold"]
["RTProASIC3","RT3PE600L","Libero SoC v11.7 SP3 or earlier","RTProASIC3RT3PE600LLibero SoC v11.7 SP3 or earlier","Gold"]
["RTSX_SU","All_Devices","Libero IDE (Any version)","RTSX_SUAll_DevicesLibero IDE (Any version)","Gold"]
["SmartFusion","All_Devices","Libero SoC v11.8 to Libero SoC v11.9 SP2","SmartFusionAll_DevicesLibero SoC v11.8 to Libero SoC v11.9 SP2","Silver"]
["SmartFusion","All_Devices","Libero SoC v11.7 SP3 or earlier","SmartFusionAll_DevicesLibero SoC v11.7 SP3 or earlier","Gold"]
["SmartFusion2","M2S005","Libero SoC v11.8 or later ",{"$f":"CONCATENATE(A67,B67,C67)","v":"SmartFusion2M2S005Libero SoC v11.8 or later "},"Silver"]
["SmartFusion2","M2S010","Libero SoC v11.8 or later ","SmartFusion2M2S010Libero SoC v11.8 or later ","Silver"]
["SmartFusion2","M2S025","Libero SoC v11.8 or later ","SmartFusion2M2S025Libero SoC v11.8 or later ","Silver"]
["SmartFusion2","M2S050","Libero SoC v11.8 or later ","SmartFusion2M2S050Libero SoC v11.8 or later ","Gold"]
["SmartFusion2","M2S060","Libero SoC v11.8 or later ","SmartFusion2M2S060Libero SoC v11.8 or later ","Gold"]
["SmartFusion2","M2S090","Libero SoC v11.8 or later ","SmartFusion2M2S090Libero SoC v11.8 or later ","Gold"]
["SmartFusion2","M2S150","Libero SoC v11.8 or later ","SmartFusion2M2S150Libero SoC v11.8 or later ","Gold"]
["SmartFusion2","All_Security_Devices","Libero SoC v11.8 or later ","SmartFusion2All_Security_DevicesLibero SoC v11.8 or later ","Gold"]
["SmartFusion2","TGrade2_Devices","Libero SoC v11.8 or later ","SmartFusion2TGrade2_DevicesLibero SoC v11.8 or later ","Gold"]
["SmartFusion2","All_Security_Devices","Libero SoC v11.7 SP3 or earlier","SmartFusion2All_Security_DevicesLibero SoC v11.7 SP3 or earlier","Platinum/Platinum Archival"]
["SmartFusion2","TGrade2_Devices","Libero SoC v11.7 SP3 or earlier","SmartFusion2TGrade2_DevicesLibero SoC v11.7 SP3 or earlier","Platinum/Platinum Archival"]
["SmartFusion2","M2S005","Libero SoC v11.7 SP3 or earlier","SmartFusion2M2S005Libero SoC v11.7 SP3 or earlier","Gold"]
["SmartFusion2","M2S010","Libero SoC v11.7 SP3 or earlier","SmartFusion2M2S010Libero SoC v11.7 SP3 or earlier","Gold"]
["SmartFusion2","M2S025","Libero SoC v11.7 SP3 or earlier","SmartFusion2M2S025Libero SoC v11.7 SP3 or earlier","Gold"]
["SmartFusion2","M2S050","Libero SoC v11.7 SP3 or earlier","SmartFusion2M2S050Libero SoC v11.7 SP3 or earlier","Gold"]
["SmartFusion2","M2S060","Libero SoC v11.7 SP3 or earlier","SmartFusion2M2S060Libero SoC v11.7 SP3 or earlier","Gold"]
["SmartFusion2","M2S090","Libero SoC v11.7 SP3 or earlier","SmartFusion2M2S090Libero SoC v11.7 SP3 or earlier","Platinum/Platinum Archival"]
["SmartFusion2","M2S150","Libero SoC v11.7 SP3 or earlier","SmartFusion2M2S150Libero SoC v11.7 SP3 or earlier","Platinum/Platinum Archival"]
["MX","All_Devices","Libero IDE (Any version)","MXAll_DevicesLibero IDE (Any version)","Gold"]
["eX","All_Devices","Libero IDE (Any version)","eXAll_DevicesLibero IDE (Any version)","Gold"]
["SX_A","All_Devices","Libero IDE (Any version)","SX_AAll_DevicesLibero IDE (Any version)","Gold"]

{"sheet":"Sheet1","index":2,"n_rows":3,"n_cols":4,"rows_kept":3,"cut":false,"hidden":true,"merged":[]}
["Which Product Family will be Used? ","Which device is being targeted?","Which Software Release / Version? ","Which license do I need? "]
["SmartFusion2","M2S090, M2S150","Libero SoC v11.7 SP3 or earlier","Platinum"]
["SmartFusion2","M2S090, M2S150","Libero SoC v11.7 SP3 or earlier","Platinum Archival"]

{"sheet":"User Interface","index":3,"n_rows":41,"n_cols":5,"rows_kept":41,"cut":false,"hidden":false,"merged":[]}
[]
[null,"STEP 1: Find the type of license you need"]
[]
[null,"Select Family","Select Device","Select Software Release","Select the type of license"]
[null,"Axcelerator","AX500",{"$f":"IF(COUNTA(INDIRECT(B5&C5))>1,\"\",CHOOSE(1,INDIRECT(B5&C5)))","v":"Libero IDE (Any version)"},{"$f":"IFERROR(VLOOKUP(CONCATENATE(B5,C5,D5),Mapping!D:E,2,0),\"\")","v":"Gold"}]
[]
[]
[]
[]
[null,"STEP 2: Select the parameters pertaining to your license"]
[]
[null,"Select the type of license","Node Locked or Floating? ","New or Renewal?","Duration"]
[null,"Please select License","Select Node Locked or Floating","Select New or Renewal","Select Duration"]
[]
[]
[null,"STEP 2: Select the parameters pertaining to your license"]
[]
[null,"Select the type of license","Node Locked or Floating? ","New or Renewal?","Duration"]
[null,"Gold","Floating_MAC_ID","Renewal","3Yr"]
[null,null,null," "]
[]
[null,"STEP 3:  Obtain link to purchase your license"]
[]
[null,"Description","Part Number ","Microchip Direct link to purchase license"]
[null,{"$f":"IFERROR(VLOOKUP(CONCATENATE($B$13,$C$13,$D$13,$E$13),'Paid Software Licenses'!$F:$G,2,0),\"\")","v":""},{"$f":"IFERROR(VLOOKUP(CONCATENATE($B$13,$C$13,$D$13,$E$13),'Paid Software Licenses'!$F:$J,3,0),\"\")","v":""},{"$f":"HYPERLINK(IFERROR(VLOOKUP(CONCATENATE($B$13,$C$13,$D$13,$E$13),'Paid Software Licenses'!$F:$J,5,0),\"\"))","v":""}]
[null,"STEP 2: Select the parameters pertaining to your license"]
[]
[null,"Select the type of license","Node Locked or Floating? ","New or Renewal?","Duration"]
[null,"Silver","Select Node Locked or Floating",{"$f":"IFERROR(IF(COUNTA(INDIRECT(B29&C29))>1,\"\",CHOOSE(1,INDIRECT(B29&C29))),\"\")","v":""},{"$f":"IFERROR(IF(COUNTA(INDIRECT(B29&C29&D29))>1,\"\",CHOOSE(1,INDIRECT(B29&C29&D29))),\"\")","v":""}]
[]
[]
[]
[]
[null,"STEP 3:  Obtain link to purchase your license"]
[]
[null,"Description","Part Number ","Microchip Direct link to purchase license"]
[null,{"$f":"IFERROR(VLOOKUP(CONCATENATE($B$19,$C$19,$D$19,$E$19),'Paid Software Licenses'!$F:$G,2,0),\"\")","v":"Renewal of Gold floating license. Extends the license validity for next three year"},{"$f":"IFERROR(VLOOKUP(CONCATENATE($B$19,$C$19,$D$19,$E$19),'Paid Software Licenses'!$F:$J,3,0),\"\")","v":"LIB-G-F-R-3YR"},{"$f":"HYPERLINK(IFERROR(VLOOKUP(CONCATENATE($B$19,$C$19,$D$19,$E$19),'Paid Software Licenses'!$F:$J,5,0),\"\"))","v":"https://www.microchipdirect.com/product/LIB-G-F-R-3YR?productLoaded=true."}]
[null,"STEP 3:  Obtain link to purchase your license"]
[]
[null,"Description","Part Number ","Microchip Direct link to purchase license"]
[null,{"$f":"IFERROR(VLOOKUP(CONCATENATE($B$29,$C$29,$D$29,$E$29),'Paid Software Licenses'!$F:$G,2,0),\"\")","v":""},{"$f":"IFERROR(VLOOKUP(CONCATENATE($B$29,$C$29,$D$29,$E$29),'Paid Software Licenses'!$F:$J,3,0),\"\")","v":""},{"$f":"HYPERLINK(IFERROR(VLOOKUP(CONCATENATE($B$29,$C$29,$D$29,$E$29),'Paid Software Licenses'!$F:$J,5,0),\"\"))","v":""}]

{"sheet":"Paid Software Licenses","index":4,"n_rows":54,"n_cols":10,"rows_kept":54,"cut":false,"hidden":true,"merged":[]}
["License Type from Previous Sheet?","Operating System?","Node Locked,  or Floating? ","New or Renewal?","Duration?","Concatenate Key","Description","Part Number ","Price ","MicrochipDirect link to purchase license"]
["Gold","Windows","DiskID_Node_Locked","New","1Yr",{"$f":"CONCATENATE(A2,C2,D2,E2)","v":"GoldDiskID_Node_LockedNew1Yr"},"Gold license locked to the Disk ID of a specific machine or PC","LIB-G-PC-N-1YR-DISKID","$1,000","https://www.microchipdirect.com/product/LIB-G-PC-N-1YR-DISKID?productLoaded=true."]
["Gold","Windows","DiskID_Node_Locked","Renewal","1Yr",{"$f":"CONCATENATE(A3,C3,D3,E3)","v":"GoldDiskID_Node_LockedRenewal1Yr"},"Renewal of Gold node locked license. Extends the license validity for next one year","LIB-G-PC-N-R-1YR-DISKID","$694.12","https://www.microchipdirect.com/product/LIB-G-PC-N-R-1YR-DISKID?productLoaded=true."]
["Gold","Windows or Linux","Floating_MAC_ID","New","1Yr","GoldFloating_MAC_IDNew1Yr","Gold floating license with single seat locked to the MACID of a specific server machine. Allows multiple users to access the license but only one user to access the SW at a time.","LIB-G-F-1YR","$1,000","https://www.microchipdirect.com/product/LIB-G-F-1YR?productLoaded=true."]
["Gold","Windows or Linux","Floating_MAC_ID","Renewal","1Yr","GoldFloating_MAC_IDRenewal1Yr","Renewal of Gold floating license. Extends the license validity for next one year","LIB-G-F-R-1YR","$694.12","https://www.microchipdirect.com/product/LIB-G-F-R-1YR?productLoaded=true."]
["Gold","Windows or Linux","Floating_MAC_ID","Incremental","1Yr_Prorated",{"$f":"CONCATENATE(A6,C6,D6,E6)","v":"GoldFloating_MAC_IDIncremental1Yr_Prorated"},"Increments the number of seats associated with an existing Gold floating license. Allows the user to add as many seats as required with price charged on a prorated basis ","LIB-G-INCR-F-1YR","$1,000","https://www.microchipdirect.com/product/LIB-G-INCR-F-1YR?productLoaded=true."]
["Platinum","Windows","DiskID_Node_Locked","New","1Yr","PlatinumDiskID_Node_LockedNew1Yr","Platinum license locked to the Disk ID of a specific machine or PC","LIB-PL-PC-N-1YR-DISKID","$3,000","https://www.microchipdirect.com/product/LIB-PL-PC-N-1YR-DISKID?productLoaded=true."]
["Platinum","Windows","DiskID_Node_Locked","Renewal","1Yr","PlatinumDiskID_Node_LockedRenewal1Yr","Renewal of Platinum node locked license. Extends the license validity for next one year","LIB-PL-PC-N-R-1YR-DISKID","$2,505.88","https://www.microchipdirect.com/product/LIB-PL-PC-N-R-1YR-DISKID?productLoaded=true."]
["Platinum","Windows or Linux","Floating_MAC_ID","New","1Yr","PlatinumFloating_MAC_IDNew1Yr","Platinum floating license with single seat locked to the MACID of a specific server machine. Allows multiple users to access the license but only one user to access the SW at a time.\n\nPlatinum floating license also allows customer to implement triple redundant server - install same license on three servers to enable redundancy","LIB-WIN-F-1YR","$3,511.76","https://www.microchipdirect.com/product/LIB-WIN-F-1YR?productLoaded=true."]
["Platinum","Windows or Linux","Floating_MAC_ID","Renewal","1Yr","PlatinumFloating_MAC_IDRenewal1Yr","Renewal of Platinum floating license. Extends the license validity for next one year","LIB-WIN-F-R-1YR","$3,000.00","https://www.microchipdirect.com/product/LIB-WIN-F-R-1YR?productLoaded=true."]
["Platinum","Windows or Linux","Floating_MAC_ID","Incremental","1Yr_Prorated","PlatinumFloating_MAC_IDIncremental1Yr_Prorated","Increments the number of seats associated with an existing Platinum floating license. Allows the user to add as many seats as required with price charged on a prorated basis ","LIB-INCR-F-WIN","$3,511.76","https://www.microchipdirect.com/product/LIB-INCR-F-WIN?productLoaded=true."]
["Platinum_Archival","Windows","DiskID_Node_Locked","New","20Yrs","Platinum_ArchivalDiskID_Node_LockedNew20Yrs","Platinum Archival license locked to a Disk ID of a specific machine or PC.\nPlatinum Archival Disk ID locked license supports all the features of one year Platinum Disk ID locked license (LIB-PL-PC-N-1YR-DISKID). It supports the latest version (released at the time of purchase) and earlier releases.","LIB-PL-PC-A-N-DISKID","$7,035.29","https://www.microchipdirect.com/product/LIB-PL-PC-A-N-DISKID?productLoaded=true."]
["Platinum_Archival","Windows or Linux","Floating_MAC_ID","New","20Yrs","Platinum_ArchivalFloating_MAC_IDNew20Yrs","Platinum floating license with single seat locked to the MACID of a specific server machine. Allows multiple users to access the license but only one user to access the SW at a time. \nPlatinum Archival license supports all the features of one year Platinum floating license (LIB-WIN-F-1YR). It supports the latest version (released at the time of purchase) and earlier releases.","LIB-PL-A-F","$7,035.29","https://www.microchipdirect.com/product/LIB-PL-A-F?productLoaded=true."]
["Platinum","Windows","DiskID_Node_Locked","New","3Yr","PlatinumDiskID_Node_LockedNew3Yr","Platinum license locked to the Disk ID of a specific machine or PC","LIB-PL-PC-N-3YR-DISKID","$6,470.59","https://www.microchipdirect.com/product/LIB-PL-PC-N-3YR-DISKID?productLoaded=true."]
["Platinum","Windows","DiskID_Node_Locked","Renewal","3Yr","PlatinumDiskID_Node_LockedRenewal3Yr","Renewal of Platinum node locked license. Extends the license validity for next three year","LIB-PL-PC-N-R-3YR-DISKID","$6,000.00","https://www.microchipdirect.com/product/LIB-PL-PC-N-R-3YR-DISKID?productLoaded=true."]
["Platinum","Windows or Linux","Floating_MAC_ID","New","3Yr","PlatinumFloating_MAC_IDNew3Yr","Platinum floating license with single seat locked to the MACID of a specific server machine. Allows multiple users to access the license but only one user to access the SW at a time.\n\nPlatinum floating license also allows customer to implement triple redundant server - install same license on three servers to enable redundancy","LIB-PL-F-3YR","$7,647.06","https://www.microchipdirect.com/product/LIB-PL-F-3YR?productLoaded=true."]
["Platinum","Windows or Linux","Floating_MAC_ID","Renewal","3Yr","PlatinumFloating_MAC_IDRenewal3Yr","Renewal of Platinum floating license. Extends the license validity for next three year","LIB-PL-F-R-3YR","$7,176.47","https://www.microchipdirect.com/product/LIB-PL-F-R-3YR?productLoaded=true."]
["Platinum","Windows or Linux","Floating_MAC_ID","Incremental","3Yr_Prorated","PlatinumFloating_MAC_IDIncremental3Yr_Prorated","Increments the number of seats associated with an existing Platinum floating license. Allows the user to add as many seats as required with price charged on a prorated basis ","LIB-PL-INCR-F-3YR","$7,647.06","https://www.microchipdirect.com/product/LIB-PL-INCR-F-3YR?productLoaded=true."]
["Gold","Windows","DiskID_Node_Locked","New","3Yr","GoldDiskID_Node_LockedNew3Yr","Gold license locked to the Disk ID of a specific machine or PC","LIB-G-PC-N-3YR-DISKID","$1,882.35","https://www.microchipdirect.com/product/LIB-G-PC-N-3YR-DISKID?productLoaded=true."]
["Gold","Windows","DiskID_Node_Locked","Renewal","3Yr","GoldDiskID_Node_LockedRenewal3Yr","Renewal of Gold node locked license. Extends the license validity for next three year","LIB-G-PC-N-R-3YR-DISKID","$1,647.06","https://www.microchipdirect.com/product/LIB-G-PC-N-R-3YR-DISKID?productLoaded=true."]
["Gold","Windows or Linux","Floating_MAC_ID","New","3Yr","GoldFloating_MAC_IDNew3Yr","Gold floating license with single seat locked to the MACID of a specific server machine. Allows multiple users to access the license but only one user to access the SW at a time.","LIB-G-F-3YR","$1,882.35","https://www.microchipdirect.com/product/LIB-G-F-3YR?productLoaded=true."]
["Gold","Windows or Linux","Floating_MAC_ID","Renewal","3Yr","GoldFloating_MAC_IDRenewal3Yr","Renewal of Gold floating license. Extends the license validity for next three year","LIB-G-F-R-3YR","$1,647.06","https://www.microchipdirect.com/product/LIB-G-F-R-3YR?productLoaded=true."]
["Gold","Windows or Linux","Floating_MAC_ID","Incremental","3Yr_Prorated",{"$f":"CONCATENATE(A23,C23,D23,E23)","v":"GoldFloating_MAC_IDIncremental3Yr_Prorated"},"Increments the number of seats associated with an existing Gold floating license. Allows the user to add as many seats as required with price charged on a prorated basis ","LIB-G-INCR-F-3YR","$1,882.35","https://www.microchipdirect.com/product/LIB-G-INCR-F-3YR?productLoaded=true."]
["Silver","Windows","DiskID_Node_Locked","New","1Yr","SilverDiskID_Node_LockedNew1Yr","Silver license locked to the Disk ID of a specific machine or PC","LIB-SLV-N-1YR-DISKID",0,"https://www.microchipdirect.com/fpga-software-products"]
["Silver","Windows or Linux","Floating_MAC_ID","New","1Yr","SilverFloating_MAC_IDNew1Yr","Silver floating license with single seat locked to the MACID of a specific server machine. Allows multiple users to access the license but only one user to access the SW at a time","LIB-SLV-F-1YR",0,"https://www.microchipdirect.com/fpga-software-products"]
[]
[]
[]
[]
[]
[]
[]
[]
["License_Type_Platinum",null,"Platinum","PlatinumDiskID_Node_Locked","PlatinumFloating_MAC_ID","PlatinumDiskID_Node_LockedNew","PlatinumDiskID_Node_LockedRenewal","PlatinumFloating_MAC_IDNew","PlatinumFloating_MAC_IDRenewal","PlatinumFloating_MAC_IdIncremental"]
["Platinum",null,"DiskID_Node_Locked","New","New","1Yr","1Yr","1Yr","1Yr","1Yr_Prorated"]
["Platinum_Archival",null,"Floating_MAC_ID","Renewal","Renewal","3Yr","3Yr","3Yr","3Yr","3Yr_Prorated"]
[null,null,null,null,"Incremental"]
[]
[]
[]
[null,null,"Platinum_Archival","Platinum_ArchivalDiskID_Node_Locked","Platinum_ArchivalFloating_MAC_ID","Platinum_ArchivalDiskID_Node_LockedNew","Platinum_ArchivalFloating_MAC_IDNew"]
[null,null,"DiskID_Node_Locked","New","New","20Yrs","20Yrs"]
[null,null,"Floating_MAC_ID"]
[]
[]
["License_Type_Gold",null,"Gold","GoldDiskID_Node_Locked","GoldFloating_MAC_ID","GoldDiskID_Node_LockedNew","GoldDiskID_Node_LockedRenewal","GoldFloating_MAC_IDNew","GoldFloating_MAC_IDRenewal","GoldFloating_MAC_IdIncremental"]
["Gold",null,"DiskID_Node_Locked","New","New","1Yr","1Yr","1Yr","1Yr","1Yr_Prorated"]
[null,null,"Floating_MAC_ID","Renewal","Renewal","3Yr","3Yr","3Yr","3Yr","3Yr_Prorated"]
[null,null,null,null,"Incremental"]
[]
[]
["License_Type_Silver",null,"Silver","SilverDiskID_Node_Locked","SilverDiskID_Node_LockedNew","SilverFloating_MAC_ID","SilverFloating_MAC_IDNew"]
["Silver",null,"DiskID_Node_Locked","New","1Yr","New","1Yr"]
[null,null,"Floating_MAC_ID"]

{"sheet":"Formula","index":5,"n_rows":29,"n_cols":5,"rows_kept":29,"cut":false,"hidden":true,"merged":[]}
[]
[]
[]
[]
[null,null,{"$f":"IF(COUNTA(INDIRECT(B5))>1,\"\",CHOOSE(1,INDIRECT(B5)))","v":{"$error":"#REF!"}},{"$f":"IF(COUNTA(INDIRECT(B5&C5))>1,\"\",CHOOSE(1,INDIRECT(B5&C5)))","v":{"$error":"#REF!"}}]
[]
[]
[]
[]
[]
[]
[]
[null,null,null,{"$f":"IF(COUNTA(INDIRECT(B13&C13))>1,\"\",CHOOSE(1,INDIRECT(B13&C13)))","v":{"$error":"#REF!"}}]
[]
[]
[]
[]
[]
[null,null,{"$f":"IF(COUNTA(INDIRECT(E5))>1,\"\",CHOOSE(1,INDIRECT(E5)))","v":{"$error":"#REF!"}},{"$f":"IF(COUNTA(INDIRECT(B19&C19))>1,\"\",CHOOSE(1,INDIRECT(B19&C19)))","v":{"$error":"#REF!"}}]
[]
[]
[]
[]
[]
[]
[]
[]
[]
[null,null,null,{"$f":"IFERROR(IF(COUNTA(INDIRECT(B29&C29))>1,\"\",CHOOSE(1,INDIRECT(B29&C29))),\"\")","v":""},{"$f":"IFERROR(IF(COUNTA(INDIRECT(B29&C29&D29))>1,\"\",CHOOSE(1,INDIRECT(B29&C29&D29))),\"\")","v":""}]